[Event "Polish University-ch Teams 2024"]
[Site "Lublin"]
[Date "2024.02.24"]
[Round "5.5"]
[White "Antolak, Julia"]
[Black "Kaminski, Maciej"]
[Result "1-0"]
[ECO "E73"]
[WhiteElo "2309"]
[BlackElo "1869"]
[Annotator "TA"]
[PlyCount "69"]
[EventDate "2024.02.22"]
[EventType "team-tourn"]
[EventCountry "POL"]
[SourceTitle "playchess.com"]
[Source "ChessBase"]
[SourceQuality "1"]
[TimeControl "900+5"]

{[%evp 13,68,45,53,62,63,30,38,27,50,48,43,54,40,3,42,30,36,19,27,19,20,19,19,21,51,27,37,18,27,27,100,108,238,243,211,229,836,817,836,810,29978,29977,2975,2750,29997,29998,29998,29997,29997,29996,29996,29997,29997,29998,29998,29999,29999]} 1. d4 {[%emt 0:00:02]} Nf6 {[%emt 0:00:02]} 2. c4 {[%emt 0:00:02]} g6 {[%emt 0:00:04]} 3. Nc3 {[%emt 0:00:01]} Bg7 {[%emt 0:00:03]} 4. e4 {[%emt 0:00:02]} d6 {[%emt 0:00:02]} 5. Be2 {[%emt 0:00:01]} O-O {[%emt 0:00:04]} 6. Be3 {[%emt 0:00:02]} e5 {[%emt 0:00:17]} 7. d5 {[%emt 0:00:03]} a5 {[%emt 0:00:26]} 8. h4 {[%emt 0:00:02]} h5 {[%emt 0:00:55]} 9. Qc2 {[%emt 0:00:02] White is more active.} Ng4 {[%emt 0:01:06]} 10. Bxg4 {[%emt 0:00:03] White is slightly better.} Bxg4 {[%emt 0:00:10]} 11. f3 {[%emt 0:00:02]} Bd7 {[%emt 0:00:03]} 12. O-O-O {[%emt 0:00:13]} f5 {[%emt 0:00:54]} 13. Bg5 {[%emt 0:00:01]} Bf6 {[%emt 0:00:10]} 14. Nh3 {[%emt 0:00:01]} f4 {[%emt 0:00:48]} 15. Bxf6 {[%emt 0:00:04]} Qxf6 {[%emt 0:00:05]} 16. Ng5 {[%emt 0:00:01]} Na6 {[%emt 0:00:44]} 17. Kb1 {[%emt 0:00:11]} Nc5 {[%emt 0:01:01]} 18. Rhg1 {[%emt 0:01:13]} Kg7 {[%emt 0:00:30]} 19. g3 {[%emt 0:00:17]} a4 {[%emt 0:02:04]} 20. Rg2 {[%emt 0:00:23]} fxg3 {[%emt 0:01:56]} 21. Rxg3 {[%emt 0:00:02]} Qf4 {[%emt 0:00:05]} (21... Qd8 $11) 22. Rdg1 $16 {[%emt 0:00:17]} Be8 {[%emt 0:00:03] [#] Loses the game.} (22... Qxh4 $2 23. Ne6+ Bxe6 24. Rxg6+ Kf7 25. dxe6+ Nxe6 26. Qd2 $18 (26. Nxa4 $2 Rg8 $19)) (22... Rg8 $16 {is a better defense.}) 23. Ne6+ $1 $18 {[%emt 0:06:09]} Nxe6 {[%emt 0:00:04]} 24. dxe6 {[%emt 0:00:01] Black must now prevent Nd5.} Qe3 $2 {[%emt 0:02:28]} (24... c6 25. Qd3 (25. Nxa4 Qe3 $11) 25... a3 26. Qxd6 axb2 27. Qe7+ (27. Kxb2 b6 $18) 27... Kh8 28. Qxb7 (28. Kxb2 b6 $11) 28... Ra5) 25. Nd5 {[%emt 0:00:23][%csl LRc7,LRe3]} Qd4 {[%emt 0:01:25]} 26. Qg2 {[%emt 0:00:32][%cal Rg3g6]} Qd3+ {[%emt 0:00:38]} 27. Ka1 {[%emt 0:00:02]} Rf6 {[%emt 0:00:24]} 28. Nxf6 {[%emt 0:00:02][%cal Rg3g6] [#] White threatens Rxg6+ and mate.} a3 {[%emt 0:00:36]} 29. Rxg6+ {[%emt 0:00:17] White mates.} Kf8 {[%emt 0:00:23]} 30. Rg8+ {[%emt 0:00:01]} Ke7 {[%emt 0:00:00]} 31. Qg7+ {[%emt 0:00:02]} Kxe6 {[%emt 0:00:00]} 32. Rxe8+ {[%emt 0:00:38]} (32. Nxe8 {gets mated.} axb2+ 33. Kxb2 Qd2+ 34. Kb1 Qxa2+ 35. Kc1 Qa1+ (35... Qxc4+ {leads to mate.} 36. Kd1 Ra1+ 37. Kd2 Ra2+ 38. Kd1 Qe2+ 39. Kc1 Qc2#) 36. Kc2 Ra2+ 37. Kd3 Qd4#) 32... Rxe8 {[%emt 0:00:00]} 33. Qd7+ {[%emt 0:00:03]} Kxf6 {[%emt 0:00:02]} 34. Qg7+ {[%emt 0:00:11]} Ke6 {[%emt 0:00:03]} 35. Rg6# {[%emt 0:00:01] Weighted Error Value: White=0.05 (flawless) /Black=0.78.  Mistake:       	---       	Black=3      Inaccurate:     	White=2     	Black=2      OK:         	White=5     	Black=5      Best:        	White=1     	Black=1      Strong:       	White=1     	---} 1-0

[Event "Polish University-ch Teams 2024"]
[Site "Lublin"]
[Date "2024.02.24"]
[Round "5.6"]
[White "Harazinska, Magdalena"]
[Black "Kubicka, Anna"]
[Result "0-1"]
[ECO "E70"]
[WhiteElo "1950"]
[BlackElo "2278"]
[Annotator "RC"]
[PlyCount "115"]
[EventDate "2024.02.22"]
[EventType "team-tourn"]
[EventCountry "POL"]
[SourceTitle "playchess.com"]
[Source "ChessBase"]
[SourceQuality "1"]
[TimeControl "900+5"]

1. d4 {[%emt 0:00:02]} Nf6 {[%emt 0:00:01]} 2. c4 {[%emt 0:00:01]} g6 {[%emt 0:00:02]} 3. Nc3 {[%emt 0:00:02]} Bg7 {[%emt 0:00:01]} 4. e4 {[%emt 0:00:01]} O-O {[%emt 0:00:03]} 5. e5 {[%emt 0:00:37]} Ne8 {[%emt 0:00:01]} 6. f4 {[%emt 0:00:43]} d6 {[%emt 0:00:06]} 7. Nf3 {[%emt 0:00:29]} dxe5 {[%emt 0:00:10]} 8. fxe5 {[%emt 0:00:10]} Bg4 {[%emt 0:00:19]} 9. Be2 {[%emt 0:00:11]} c5 {[%emt 0:00:04]} 10. dxc5 {[%emt 0:00:59]} Qxd1+ {[%emt 0:00:13]} 11. Bxd1 {[%emt 0:00:07]} Nc6 {[%emt 0:00:20]} 12. Bf4 {[%emt 0:00:29]} Nc7 {[%emt 0:00:43]} 13. h3 {[%emt 0:01:19]} Bxf3 {[%emt 0:00:13]} 14. Bxf3 {[%emt 0:00:02]} Ne6 {[%emt 0:00:07]} 15. Bg3 {[%emt 0:01:19]} Nxc5 {[%emt 0:01:07]} 16. Bxc6 {[%emt 0:00:21]} bxc6 {[%emt 0:00:01]} 17. O-O-O {[%emt 0:00:14]} Rfd8 {[%emt 0:01:10]} 18. Kc2 {[%emt 0:00:08]} a5 {[%emt 0:00:44]} 19. Rxd8+ {[%emt 0:00:25]} Rxd8 {[%emt 0:00:02]} 20. Rd1 {[%emt 0:00:02]} Rxd1 {[%emt 0:00:13]} 21. Nxd1 {[%emt 0:00:14]} Nd7 {[%emt 0:00:47]} 22. e6 {[%emt 0:00:37]} fxe6 {[%emt 0:00:02]} 23. Bc7 {[%emt 0:00:23]} Ne5 {[%emt 0:07:11]} 24. Ne3 {[%emt 0:01:29]} a4 {[%emt 0:00:16]} 25. a3 {[%emt 0:00:41]} Kf7 {[%emt 0:00:27]} 26. Bxe5 {[%emt 0:01:09]} Bxe5 {[%emt 0:00:02]} 27. b3 {[%emt 0:00:01]} Bd4 {[%emt 0:00:53]} 28. Nd1 {[%emt 0:00:02]} axb3+ {[%emt 0:00:04]} 29. Kxb3 {[%emt 0:00:02]} e5 {[%emt 0:00:06]} 30. a4 {[%emt 0:00:25]} e4 {[%emt 0:00:36]} 31. Nc3 {[%emt 0:00:28]} e3 {[%emt 0:00:23]} 32. Ne2 {[%emt 0:00:01]} e5 {[%emt 0:00:06]} 33. Kc2 {[%emt 0:00:12]} Ke6 {[%emt 0:00:18]} 34. Kd3 {[%emt 0:00:51]} Kd6 {[%emt 0:00:18]} 35. Ng3 {[%emt 0:01:34]} Kc5 {[%emt 0:00:08]} 36. Ne4+ {[%emt 0:00:33]} Kb4 {[%emt 0:00:11]} 37. Nf6 {[%emt 0:00:26]} h5 {[%emt 0:00:09]} 38. Nh7 {[%emt 0:00:10]} Bc5 {[%emt 0:00:08]} 39. Ng5 {[%emt 0:00:23]} Kxa4 {[%emt 0:00:04]} 40. Nf7 {[%emt 0:00:02]} Bd4 {[%emt 0:00:07]} 41. g4 {[%emt 0:00:10]} hxg4 {[%emt 0:00:04]} 42. hxg4 {[%emt 0:00:01]} Kb4 {[%emt 0:00:19]} 43. Nd6 {[%emt 0:00:03]} Kb3 {[%emt 0:00:02]} 44. Nc8 {[%emt 0:00:07]} e4+ {[%emt 0:00:03]} 45. Ke2 {[%emt 0:00:01]} Kxc4 {[%emt 0:00:02]} 46. Ne7 {[%emt 0:00:01]} c5 {[%emt 0:00:06]} 47. Nxg6 {[%emt 0:00:02]} Kd5 {[%emt 0:00:02]} 48. Nf4+ {[%emt 0:00:08]} Ke5 {[%emt 0:00:03]} 49. Ng2 {[%emt 0:00:14]} c4 {[%emt 0:00:05]} 50. Ne1 {[%emt 0:00:46]} Kf4 {[%emt 0:00:07]} 51. Nc2 {[%emt 0:00:01]} Bc5 {[%emt 0:00:01]} 52. Ne1 {[%emt 0:00:14]} Kxg4 {[%emt 0:00:03]} 53. Nc2 {[%emt 0:00:01]} Kf4 {[%emt 0:00:04]} 54. Ne1 {[%emt 0:00:01]} Ke5 {[%emt 0:00:03]} 55. Nc2 {[%emt 0:00:01]} Kd5 {[%emt 0:00:03]} 56. Kd1 {[%emt 0:00:08]} c3 {[%emt 0:00:14]} 57. Ne1 {[%emt 0:00:19]} Kc4 {[%emt 0:00:02]} 58. Ke2 {[%emt 0:00:13]} 0-1

[Event "Polish University-ch Teams 2024"]
[Site "Lublin"]
[Date "2024.02.24"]
[Round "5.7"]
[White "Kosakowski, Jakub"]
[Black "Dzida, Kamil"]
[Result "0-1"]
[ECO "C50"]
[WhiteElo "2482"]
[BlackElo "2403"]
[Annotator "RC"]
[PlyCount "72"]
[EventDate "2024.02.22"]
[EventType "team-tourn"]
[EventCountry "POL"]
[SourceTitle "playchess.com"]
[Source "ChessBase"]
[SourceQuality "1"]
[TimeControl "900+5"]

1. e4 {[%emt 0:00:03]} e5 {[%emt 0:00:01]} 2. Nf3 {[%emt 0:00:04]} Nc6 {[%emt 0:00:01]} 3. Bc4 {[%emt 0:00:21]} Nf6 {[%emt 0:00:02]} 4. d3 {[%emt 0:00:02]} Bc5 {[%emt 0:00:05]} 5. Nc3 {[%emt 0:00:19]} d6 {[%emt 0:01:07]} 6. Na4 {[%emt 0:00:20]} Bb6 {[%emt 0:01:22]} 7. a3 {[%emt 0:00:02]} O-O {[%emt 0:00:21]} 8. h3 {[%emt 0:00:24]} Be6 {[%emt 0:00:24]} 9. Bxe6 {[%emt 0:00:15]} fxe6 {[%emt 0:00:01]} 10. O-O {[%emt 0:00:15]} Qe8 {[%emt 0:00:28]} 11. c3 {[%emt 0:00:15]} Rd8 {[%emt 0:00:30]} 12. Nxb6 {[%emt 0:00:48]} axb6 {[%emt 0:00:02]} 13. Qe2 {[%emt 0:00:11]} Nh5 {[%emt 0:01:23]} 14. g3 {[%emt 0:00:06]} Rd7 {[%emt 0:00:36]} 15. Nh4 {[%emt 0:00:53]} Rdf7 {[%emt 0:02:02]} 16. Bd2 {[%emt 0:00:35]} Nf6 {[%emt 0:00:46]} 17. Rae1 {[%emt 0:00:28]} d5 {[%emt 0:00:50]} 18. Kg2 {[%emt 0:04:11]} Qd7 {[%emt 0:00:32]} 19. Bc1 {[%emt 0:07:08]} Rd8 {[%emt 0:01:04]} 20. Rd1 {[%emt 0:00:00]} Qe7 {[%emt 0:02:55]} 21. Nf3 {[%emt 0:00:00]} h6 {[%emt 0:00:07]} 22. Nh2 {[%emt 0:00:00]} Rdf8 {[%emt 0:00:28]} 23. Ng4 {[%emt 0:00:00]} Kh7 {[%emt 0:00:07]} 24. Rde1 {[%emt 0:00:00]} Nd7 {[%emt 0:00:46]} 25. d4 {[%emt 0:00:00]} Kg8 {[%emt 0:01:01]} 26. exd5 {[%emt 0:00:00]} exd5 {[%emt 0:00:02]} 27. Nxe5 {[%emt 0:00:00]} Ncxe5 {[%emt 0:00:03]} 28. dxe5 {[%emt 0:00:00]} Qe6 {[%emt 0:00:04]} 29. b4 {[%emt 0:00:00]} Rf3 {[%emt 0:00:07]} 30. Qxf3 {[%emt 0:00:04]} Rxf3 {[%emt 0:00:01]} 31. Kxf3 {[%emt 0:00:02]} Nxe5+ {[%emt 0:00:01]} 32. Kg2 {[%emt 0:00:01]} Qf6 {[%emt 0:00:02]} 33. Be3 {[%emt 0:00:22]} Qf3+ {[%emt 0:00:04]} 34. Kh2 {[%emt 0:00:38]} Qe4 {[%emt 0:00:02]} 35. Re2 {[%emt 0:00:05]} Nf3+ {[%emt 0:00:01]} 36. Kg2 {[%emt 0:00:01]} Nh4+ {[%emt 0:00:02]} 0-1

[Event "Polish University-ch Teams 2024"]
[Site "Lublin"]
[Date "2024.02.24"]
[Round "5.8"]
[White "Klepek, Witold"]
[Black "Niedbala, Bartlomiej"]
[Result "1-0"]
[ECO "B90"]
[WhiteElo "2262"]
[BlackElo "2382"]
[Annotator "TA"]
[PlyCount "121"]
[EventDate "2024.02.22"]
[EventType "team-tourn"]
[EventCountry "POL"]
[SourceTitle "playchess.com"]
[Source "ChessBase"]
[SourceQuality "1"]
[TimeControl "900+5"]

{[%evp 17,121,18,13,-51,-38,-59,-58,-83,-49,-65,75,75,65,57,64,61,68,67,110,101,92,90,127,69,78,66,66,39,67,10,67,66,67,2,14,6,6,0,0,0,0,0,0,0,0,0,0,0,0,0,0,0,53,38,76,76,137,0,26,0,168,0,92,100,116,0,0,-18,-13,0,0,0,0,0,17,25,28,22,39,0,63,59,83,58,72,72,218,211,337,332,492,372,762,727,964,931,746,672,753,720,681,716,854,781,1085,1068]} 1. e4 {[%emt 0:00:02]} c5 {[%emt 0:00:00]} 2. Nf3 {[%emt 0:00:02]} d6 {[%emt 0:00:01]} 3. d4 {[%emt 0:00:04]} cxd4 {[%emt 0:00:01]} 4. Nxd4 {[%emt 0:00:02]} Nf6 {[%emt 0:00:03]} 5. Nc3 {[%emt 0:00:02]} a6 {[%emt 0:00:03]} 6. Be3 {[%emt 0:00:29]} e5 {[%emt 0:00:37]} 7. Nb3 {[%emt 0:00:01]} Be6 {[%emt 0:00:20]} 8. h3 {[%emt 0:00:16] B90: Sicilian Najdorf: Unusual White 6th moves, 6 Be3 Ng4 and 6 Be3 e5.} Nbd7 {[%emt 0:00:13]} 9. Qf3 {[%emt 0:00:24]} Rc8 {[%emt 0:00:19]} 10. O-O-O {[%emt 0:00:53]} (10. Bd3 $11) 10... Rxc3 $1 $15 {[%emt 0:00:04]} 11. bxc3 {[%emt 0:00:02]} Qc7 {[%emt 0:00:09]} 12. Kb1 {[%emt 0:01:32]} b5 $146 {[%emt 0:01:25]} ({Predecessor:} 12... Be7 13. g4 h6 14. Rg1 Qxc3 15. Rg3 Qc6 16. Bg2 Nb6 17. Bxb6 Qxb6 18. h4 a5 {0-1 Preotu,R (2475)-Sarana,A (2685) Titled Tuesday intern op 01st Aug Early blitz 2023 (3)}) 13. g4 {[%emt 0:00:47]} Nb6 {[%emt 0:02:25]} (13... h6 $15 {keeps the upper hand.}) 14. Bxb6 $16 {[%emt 0:01:58]} Qxb6 {[%emt 0:00:01]} 15. g5 {[%emt 0:00:16]} Nd7 {[%emt 0:00:04]} 16. h4 {[%emt 0:00:08]} Be7 {[%emt 0:00:13]} 17. Bh3 {[%emt 0:00:10]} Bxh3 {[%emt 0:02:13]} 18. Rxh3 {[%emt 0:00:11]} Qc7 {[%emt 0:00:11]} 19. Qg4 {[%emt 0:00:31]} Nb6 {[%emt 0:01:45]} 20. h5 {[%emt 0:00:33]} (20. f4 $1 $16) 20... Na4 $14 {[%emt 0:01:16]} 21. Rdd3 {[%emt 0:00:10]} Qd7 {[%emt 0:00:43]} 22. Qxd7+ {[%emt 0:01:19]} (22. Qg3 {feels hotter.} Qb7 23. g6 Qxe4 24. gxf7+ Kxf7 25. Re3) 22... Kxd7 {[%emt 0:00:01]} 23. Rhg3 {[%emt 0:00:04]} (23. Rdf3 $14 Ke6 24. h6) 23... Rc8 {[%emt 0:00:33]} (23... h6 $11) 24. Rdf3 $14 {[%emt 0:00:34]} Ke6 {[%emt 0:00:15]} 25. Kc1 {[%emt 0:01:19]} (25. Nd2 $14) 25... h6 $1 $11 {[%emt 0:01:03]} 26. g6 {[%emt 0:00:44]} f6 {[%emt 0:00:01]} 27. Rd3 {[%emt 0:00:40]} Bd8 {[%emt 0:00:08]} 28. Rgf3 {[%emt 0:01:55]} Bb6 {[%emt 0:00:11]} 29. Kb1 {[%emt 0:01:16]} Ba7 {[%emt 0:00:15]} (29... Rc4 $5 30. Nd2 $8 Rc7 $14) 30. Kc1 {[%emt 0:00:12]} Bb6 {[%emt 0:00:25]} 31. Kb1 {[%emt 0:00:01]} Rc4 {[%emt 0:00:21]} 32. Nd2 {[%emt 0:00:05]} Rc7 {[%emt 0:00:02]} 33. Nb3 {[%emt 0:00:04]} Ba7 {[%emt 0:00:13]} (33... Rc4 $5 34. Nd2 $8 Rc7 $16) 34. Kc1 {[%emt 0:00:02]} Nb6 {[%emt 0:00:05]} (34... Rc6 $11) 35. Rd1 {[%emt 0:00:38]} Nc4 {[%emt 0:00:14]} 36. Nd2 {[%emt 0:00:21]} Nb6 {[%emt 0:00:16] [#]} (36... Nxd2 $142 37. Rxd2 (37. Kxd2 Rc4 $11) 37... Rc4) 37. Nb3 {[%emt 0:00:01]} (37. Nf1 $1 $16) 37... Nc4 $11 {[%emt 0:00:21]} 38. Nd2 {[%emt 0:00:02]} Na5 $2 {[%emt 0:00:00] [#]} (38... Nb6 $11 {and Black stays safe.}) 39. Nb3 $2 {[%emt 0:00:06]} ({Better is} 39. Nf1 $1 $18) 39... Nb7 {[%emt 0:00:01]} (39... Nc4 $11) 40. Kb2 $16 {[%emt 0:00:06]} a5 {[%emt 0:00:06]} 41. Rd2 {[%emt 0:00:20]} ({White should play} 41. a3 $16) 41... a4 $11 {[%emt 0:00:07]} 42. Nc1 {[%emt 0:00:02]} Rc4 {[%emt 0:00:28]} 43. Re2 $1 {[%emt 0:00:08]} Nc5 {[%emt 0:00:16]} 44. Rfe3 {[%emt 0:00:04]} Nb7 {[%emt 0:00:21]} 45. Rf3 {[%emt 0:00:04]} Bb6 {[%emt 0:00:18]} (45... Nc5 $5 46. Rfe3 $8 a3+ 47. Kxa3 Ra4+ 48. Kb2 Rc4 $11) 46. a3 {[%emt 0:00:02]} Nc5 {[%emt 0:00:08]} 47. Rfe3 {[%emt 0:00:01]} Nb7 {[%emt 0:00:20]} 48. Rf3 {[%emt 0:00:01]} Na5 {[%emt 0:00:08]} ({Black should try} 48... Nc5 $11 49. Rfe3 Kd7) 49. Rd3 {[%emt 0:00:12]} Rc6 {[%emt 0:00:11]} 50. Ka2 {[%emt 0:00:09]} Bc5 {[%emt 0:00:07]} 51. Rd5 {[%emt 0:00:04]} Nc4 {[%emt 0:00:02]} (51... f5 $16) 52. Nd3 $18 {[%emt 0:00:03]} Nb6 {[%emt 0:00:14]} (52... Rc8 $142 53. Re1 f5) 53. Nxc5+ $18 {[%emt 0:00:01]} dxc5 {[%emt 0:00:01]} (53... Ke7 $142) 54. Red2 {[%emt 0:00:01]} Ke7 $2 {[%emt 0:00:09]} (54... Nc4 55. Rd1 Nd6) 55. Rd8 $18 {[%emt 0:00:01]} Rc7 {[%emt 0:00:13]} 56. Rg8 {[%emt 0:00:02]} Ke6 {[%emt 0:00:00]} 57. Re8+ {[%emt 0:00:02]} Re7 {[%emt 0:00:00]} 58. Rb8 {[%emt 0:00:03]} Nc4 {[%emt 0:00:00]} 59. Rd5 {[%emt 0:00:02]} f5 {[%emt 0:00:00]} 60. Rxc5 {[%emt 0:00:05]} fxe4 {[%emt 0:00:02]} 61. Rbxb5 {[%emt 0:00:03]} 1-0

[Event "Polish University-ch Teams 2024"]
[Site "Lublin"]
[Date "2024.02.24"]
[Round "5.9"]
[White "Hasterok, Mateusz"]
[Black "Golenia, Jan"]
[Result "1-0"]
[ECO "D03"]
[WhiteElo "2150"]
[BlackElo "2221"]
[Annotator "RC"]
[PlyCount "93"]
[EventDate "2024.02.22"]
[EventType "team-tourn"]
[EventCountry "POL"]
[SourceTitle "playchess.com"]
[Source "ChessBase"]
[SourceQuality "1"]
[TimeControl "900+5"]

1. d4 {[%emt 0:00:01]} Nf6 {[%emt 0:00:04]} 2. Bg5 {[%emt 0:00:02]} d5 {[%emt 0:00:02]} 3. Nd2 {[%emt 0:00:01]} Nbd7 {[%emt 0:00:07]} 4. Ngf3 {[%emt 0:00:02]} c5 {[%emt 0:01:02]} 5. e3 {[%emt 0:00:07]} h6 {[%emt 0:01:56]} 6. Bh4 {[%emt 0:00:02]} g5 {[%emt 0:00:13]} 7. Bg3 {[%emt 0:00:01]} Bg7 {[%emt 0:00:14]} 8. c3 {[%emt 0:00:03]} Qb6 {[%emt 0:00:29]} 9. Rb1 {[%emt 0:00:45]} Nh5 {[%emt 0:03:29]} 10. Bd3 {[%emt 0:00:19]} Qe6 {[%emt 0:03:02]} 11. Qa4 {[%emt 0:01:58]} c4 {[%emt 0:00:14]} 12. Be2 {[%emt 0:00:01]} a6 {[%emt 0:00:13]} 13. Qc2 {[%emt 0:00:09]} f5 {[%emt 0:00:32]} 14. Be5 {[%emt 0:01:10]} Nhf6 {[%emt 0:00:38]} 15. b3 {[%emt 0:00:52]} b5 {[%emt 0:00:01]} 16. bxc4 {[%emt 0:00:02]} dxc4 {[%emt 0:01:29]} 17. a4 {[%emt 0:00:28]} g4 {[%emt 0:00:16]} 18. Nh4 {[%emt 0:00:19]} Nxe5 {[%emt 0:00:14]} 19. dxe5 {[%emt 0:00:02]} Nd5 {[%emt 0:00:17]} 20. axb5 {[%emt 0:00:26]} axb5 {[%emt 0:00:23]} 21. Rxb5 {[%emt 0:00:20]} Ra1+ {[%emt 0:00:28]} 22. Nb1 {[%emt 0:00:16]} Qc6 {[%emt 0:00:31]} 23. Rb8 {[%emt 0:00:13]} O-O {[%emt 0:00:21]} 24. O-O {[%emt 0:00:07]} Bxe5 {[%emt 0:00:01]} 25. Rxc8 {[%emt 0:01:34]} Qxc8 {[%emt 0:00:02]} 26. Ng6 {[%emt 0:00:02]} Bg7 {[%emt 0:00:13]} 27. Nxf8 {[%emt 0:00:07]} Kxf8 {[%emt 0:00:05]} 28. Qb2 {[%emt 0:00:39]} Ra7 {[%emt 0:00:15]} 29. Qb5 {[%emt 0:00:16]} Nxc3 {[%emt 0:00:13]} 30. Nxc3 {[%emt 0:00:02]} Bxc3 {[%emt 0:00:01]} 31. Bxc4 {[%emt 0:00:07]} Ra5 {[%emt 0:00:01]} 32. Qb3 {[%emt 0:00:13]} Bf6 {[%emt 0:00:02]} 33. g3 {[%emt 0:00:12]} Kg7 {[%emt 0:00:06]} 34. Rd1 {[%emt 0:00:10]} Rc5 {[%emt 0:00:06]} 35. Be6 {[%emt 0:00:02]} Qc6 {[%emt 0:00:06]} 36. Bd7 {[%emt 0:00:04]} Qc7 {[%emt 0:00:02]} 37. Qd3 {[%emt 0:00:14]} Qe5 {[%emt 0:00:08]} 38. Qb3 {[%emt 0:01:30]} Qe4 {[%emt 0:00:17]} 39. Be6 {[%emt 0:00:59]} Qe5 {[%emt 0:00:08]} 40. Bg8 {[%emt 0:00:33]} e6 {[%emt 0:00:08]} 41. Bxe6 {[%emt 0:00:05]} Rc3 {[%emt 0:00:10]} 42. Qb7+ {[%emt 0:00:04]} Rc7 {[%emt 0:00:01]} 43. Rd7+ {[%emt 0:00:06]} Rxd7 {[%emt 0:00:01]} 44. Qxd7+ {[%emt 0:00:01]} Kg6 {[%emt 0:00:05]} 45. Qf7+ {[%emt 0:00:26]} Kg5 {[%emt 0:00:01]} 46. h4+ {[%emt 0:00:01]} gxh3 {[%emt 0:00:01]} 47. f4+ {[%emt 0:00:01]} 1-0

[Event "Polish University-ch Teams 2024"]
[Site "Lublin"]
[Date "2024.02.24"]
[Round "5.10"]
[White "Musial, Tomasz"]
[Black "Brozyna, Mateusz"]
[Result "1-0"]
[ECO "C45"]
[WhiteElo "2171"]
[BlackElo "2259"]
[Annotator "TA"]
[PlyCount "81"]
[EventDate "2024.02.22"]
[EventType "team-tourn"]
[EventCountry "POL"]
[SourceTitle "playchess.com"]
[Source "ChessBase"]
[SourceQuality "1"]
[TimeControl "900+5"]

{[%evp 11,81,0,16,8,6,6,18,5,31,44,25,32,65,21,44,0,113,30,36,14,80,78,103,129,133,99,203,207,202,205,213,216,361,320,337,333,385,381,521,519,482,434,463,456,447,440,413,327,343,318,302,314,413,377,545,535,1129,1122,998,637,1145,1151,1132,1184,6179,4798,29978,29979,29979,29980,29979,29980]} 1. e4 {[%emt 0:00:02]} e5 {[%emt 0:00:01]} 2. Nf3 {[%emt 0:00:02]} Nc6 {[%emt 0:00:02]} 3. d4 {[%emt 0:00:03]} exd4 {[%emt 0:00:02]} 4. Nxd4 {[%emt 0:00:02]} Bc5 {[%emt 0:00:02]} 5. Nb3 {[%emt 0:00:02]} Bb6 {[%emt 0:00:02]} 6. Nc3 {[%emt 0:00:01]} Nf6 {[%emt 0:00:03]} 7. Qe2 {[%emt 0:00:02]} O-O {[%emt 0:00:21]} 8. Be3 $1 {[%emt 0:00:03]} Re8 {[%emt 0:00:10]} 9. f3 {[%emt 0:00:14] The position is equal.} d6 {[%emt 0:00:19]} 10. O-O-O {[%emt 0:00:14]} Be6 {[%emt 0:00:37]} 11. g4 {[%emt 0:01:26]} Nd7 {[%emt 0:02:22]} 12. Kb1 {[%emt 0:00:59]} a5 {[%emt 0:00:20]} 13. a4 {[%emt 0:01:21]} Nce5 {[%emt 0:02:31]} (13... Bxb3 $11 14. cxb3 Qh4) 14. h3 {[%emt 0:01:19]} (14. Nd4 $16) 14... Bc4 {[%emt 0:03:52]} 15. Qf2 {[%emt 0:00:15]} Bxf1 {[%emt 0:00:04]} (15... Bxe3 $11 {remains equal.} 16. Qxe3 Bxb3 17. cxb3 g5) 16. Rhxf1 $16 {[%emt 0:00:03] White stays focused until the end.} Nc4 {[%emt 0:00:13]} 17. Bxb6 {[%emt 0:00:12]} Ndxb6 {[%emt 0:00:02]} 18. Nd4 {[%emt 0:02:37]} Qd7 {[%emt 0:00:24]} (18... Qe7 $16 {was necessary.}) 19. b3 $18 {[%emt 0:00:05]} Ne5 {[%emt 0:00:13]} 20. f4 {[%emt 0:00:25]} Nc6 {[%emt 0:00:03]} 21. Nf5 {[%emt 0:00:07]} g6 {[%emt 0:01:55] [#]} (21... Nc8 $142 22. h4 N8e7) 22. Nxd6 $1 {[%emt 0:00:32][%mdl 512]} cxd6 {[%emt 0:01:28]} 23. Qxb6 {[%emt 0:00:03]} Rac8 {[%emt 0:00:26]} 24. Nd5 {[%emt 0:02:25]} Kg7 {[%emt 0:00:10] Prevents Nf6} 25. Qe3 {[%emt 0:00:05]} Qe6 {[%emt 0:00:10]} 26. Qc3+ {[%emt 0:00:55]} f6 {[%emt 0:00:11]} 27. g5 {[%emt 0:00:13]} Nb4 {[%emt 0:00:19]} 28. Qxf6+ {[%emt 0:00:15]} (28. gxf6+ Kf7 29. Qd4 Nxd5 30. Qxd5 (30. exd5 Qe2 $16) 30... Qxd5 31. Rxd5 Rxe4 $11) 28... Qxf6 {[%emt 0:00:04]} 29. gxf6+ {[%emt 0:00:08]} Kf7 {[%emt 0:00:02]} 30. Nxb4 {[%emt 0:00:28]} axb4 {[%emt 0:00:01][%mdl 4096] Endgame. KRR-KRR} 31. Rd4 {[%emt 0:00:33]} Rc3 {[%emt 0:00:41]} 32. Rxb4 {[%emt 0:00:16]} Rxh3 {[%emt 0:00:04]} (32... Kxf6 $142 33. e5+ (33. Rxb7 Rxe4 34. Rxh7 Re2 $18) 33... dxe5 34. fxe5+ (34. Rxb7 e4 $18) 34... Ke6 35. Rb6+ (35. Rxb7 Rec8 $18) 35... Kd5 36. Rd1+ (36. Rxb7 Rxh3 37. a5 Re3 $18) 36... Ke4 37. Rxb7 Rxh3) 33. Rd1 {[%emt 0:00:17]} Re6 {[%emt 0:00:13]} 34. Rxb7+ {[%emt 0:00:21]} Kxf6 {[%emt 0:00:02] [#]} 35. Rxd6 $3 {[%emt 0:00:20][%mdl 512]} Rxd6 {[%emt 0:00:03]} 36. e5+ {[%emt 0:00:01][%cal Be4e5,Be5d6,Bd6d7][%mdl 32]} Ke6 37. exd6 h5 {[%emt 0:00:05]} 38. d7 {[%emt 0:00:14]} Ke7 {[%emt 0:00:04]} 39. a5 {[%emt 0:00:02][%cal Ba4a5,Ba5a6,Ba6a7][%mdl 32] White mates.} Re3 {[%emt 0:00:21]} 40. a6 {[%emt 0:00:04]} Re6 {[%emt 0:00:02]} 41. a7 {[%emt 0:00:04] Weighted Error Value: White=0.18 (very precise) /Black=0.62.  Mistake:       	White=1     	Black=5      Inaccurate:     	White=2     	Black=5      OK:         	White=14    	Black=5      Best:        	White=1     	Black=3      Strong:       	White=1     	---} 1-0